fUSD/lending_fUSD_20251231
["ID","MTS","AMOUNT","RATE_DAILY","PERIOD"]
[400228067,1767206067671,271.929877,0.00043247,50]
[400228068,1767206067765,463.101241,0.00043247,50]
[400228069,1767206067955,271.929877,0.00043247,50]
[400228070,1767206068105,463.101241,0.00043247,50]
[400228071,1767206068150,157.336587,0.00043247,50]
[400228072,1767206068230,271.929877,0.00043247,50]
[400228073,1767206068405,157.336587,0.00043247,50]
[400228074,1767206068446,463.101241,0.00043247,50]
[400228075,1767206068512,271.929877,0.00043247,50]
[400228076,1767206068685,157.336587,0.00043247,50]
[400228077,1767206068726,463.101241,0.00043247,50]
[400228078,1767206068808,271.929877,0.00043247,50]
[400228079,1767206069024,463.101241,0.00043247,50]
[400228080,1767206069072,157.336587,0.00043247,50]
[400228081,1767206069111,271.929877,0.00043247,50]
[400228082,1767206069323,463.101241,0.00043247,50]
[400228083,1767206069364,157.336587,0.00043247,50]
[400228084,1767206069406,271.929877,0.00043247,50]
[400228085,1767206069629,463.101241,0.00043247,50]
[400228086,1767206069676,271.929877,0.00043247,50]
[400228087,1767206069716,157.336587,0.00043247,50]
[400228088,1767206069946,463.101241,0.00043247,50]
[400228089,1767206069986,271.929877,0.00043247,50]
[400228090,1767206070024,157.336587,0.00043247,50]
[400228091,1767206070269,463.101241,0.00043247,50]
[400228092,1767206070311,157.336587,0.00043247,50]
[400228093,1767206070353,271.929877,0.00043247,50]
[400228094,1767206070586,157.336587,0.00043247,50]
[400228095,1767206070628,271.929877,0.00043247,50]
[400228096,1767206070671,463.101241,0.00043247,50]
[400228097,1767206070899,271.929877,0.00043247,50]
[400228098,1767206070938,463.101241,0.00043247,50]
[400228099,1767206071188,157.336587,0.00043247,50]
[400228100,1767206071235,271.929877,0.00043247,50]
[400228101,1767206071284,463.101236,0.00043247,50]
[400228102,1767206071324,157.336583,0.00043247,50]
[400228103,1767206071476,271.929877,0.00043247,50]
[400228104,1767206071909,271.929877,0.00043247,50]
[400228105,1767206072241,271.929877,0.00043247,50]
[400228106,1767206072368,271.929877,0.00043247,50]
[400228107,1767206072624,271.929876,0.00043247,50]
[400228108,1767206076997,157.221118,0.00043247,50]
[400228109,1767206077208,250510.60538945,0.00043247,90]
[400228110,1767206077279,157.221118,0.00043247,50]
[400228111,1767206077588,157.221118,0.00043247,50]
[400228112,1767206077883,157.221118,0.00043247,50]
[400228113,1767206078174,157.221118,0.00043247,50]
[400228114,1767206078465,157.221118,0.00043247,50]
[400228115,1767206078794,157.221118,0.00043247,50]
[400228116,1767206079092,157.221118,0.00043247,50]
[400228117,1767206079396,157.221118,0.00043247,50]
[400228118,1767206079681,157.221118,0.00043247,50]
[400228119,1767206079967,157.221118,0.00043247,50]
[400228120,1767206080249,157.221118,0.00043247,50]
[400228121,1767206080544,157.221118,0.00043247,50]
[400228122,1767206080867,157.221118,0.00043247,50]
[400228123,1767206081167,157.221118,0.00043247,50]
[400228124,1767206081443,157.221118,0.00043247,50]
[400228125,1767206081869,157.221118,0.00043247,50]
[400228126,1767206082155,157.221118,0.00043247,50]
[400228127,1767206082665,157.221118,0.00043247,50]
[400228128,1767206082826,157.221126,0.00043247,50]
[400228129,1767206083323,151.0,0.00043247,50]
[400228130,1767206083643,151.0,0.00043247,50]
[400228131,1767206084035,151.0,0.00043247,50]
[400228132,1767206084321,151.0,0.00043247,50]
[400228133,1767206084608,151.0,0.00043247,50]
[400228134,1767206084894,151.0,0.00043247,50]
[400228135,1767206085171,151.0,0.00043247,50]
[400228136,1767206085453,151.0,0.00043247,50]
[400228137,1767206085779,151.0,0.00043247,50]
[400228138,1767206086065,151.0,0.00043247,50]
[400228139,1767206086355,151.0,0.00043247,50]
[400228140,1767206086929,151.0,0.00043247,50]
[400228141,1767206087239,151.0,0.00043247,50]
[400228142,1767206087550,151.0,0.00043247,50]
[400228143,1767206087863,151.0,0.00043247,50]
[400228144,1767206088153,151.0,0.00043247,50]
[400228145,1767206088471,151.0,0.00043247,50]
[400228146,1767206088764,270.905637,0.00043247,50]
[400228147,1767206091786,151.0,0.00043247,50]
[400228148,1767206092195,151.0,0.00043247,50]
[400228149,1767206092538,151.0,0.00043247,50]
[400228150,1767206092898,151.0,0.00043247,50]
[400228151,1767206093075,151.0,0.00043247,50]
[400228152,1767206093365,173.400647,0.00043247,50]
[400228153,1767206112013,476.441207,0.00043247,50]
[400228154,1767206112308,476.441207,0.00043247,50]
[400228155,1767206112601,476.441207,0.00043247,50]
[400228156,1767206112904,476.441207,0.00043247,50]
[400228157,1767206113206,476.441207,0.00043247,50]
[400228158,1767206113587,476.441207,0.00043247,50]
[400228159,1767206113804,476.441207,0.00043247,50]
[400228160,1767206114091,476.441207,0.00043247,50]
[400228161,1767206114607,476.441207,0.00043247,50]
[400228162,1767206114715,476.441207,0.00043247,50]
[400228163,1767206114980,151.0,0.00043247,50]
[400228164,1767206115022,476.441207,0.00043247,50]
[400228165,1767206115304,476.441207,0.00043247,50]
[400228166,1767206115447,188.803288,0.00043247,50]
[400228167,1767206115560,151.0,0.00043247,50]
[400228168,1767206115615,476.441207,0.00043247,50]
[400228169,1767206115850,151.0,0.00043247,50]
[400228170,1767206115920,476.441207,0.00043247,50]
[400228171,1767206116149,151.0,0.00043247,50]
[400228172,1767206116211,476.441207,0.00043247,50]
[400228173,1767206116485,151.0,0.00043247,50]
[400228174,1767206116679,476.441207,0.00043247,50]
[400228175,1767206116781,151.0,0.00043247,50]
[400228176,1767206116998,476.441207,0.00043247,50]
[400228177,1767206117097,151.0,0.00043247,50]
[400228178,1767206117297,476.441207,0.00043247,50]
[400228179,1767206117379,151.0,0.00043247,50]
[400228180,1767206117591,476.441207,0.00043247,50]
[400228181,1767206117917,476.441198,0.00043247,50]
[400228182,1767206118026,151.0,0.00043247,50]
[400228183,1767206118315,151.0,0.00043247,50]
[400228184,1767206118596,151.0,0.00043247,50]
[400228185,1767206118890,151.0,0.00043247,50]
[400228186,1767206119166,151.0,0.00043247,50]
[400228187,1767206119456,151.0,0.00043247,50]
[400228188,1767206119750,151.0,0.00043247,50]
[400228189,1767206120070,225.412701,0.00043247,50]
[400228190,1767206122163,153.837714,0.00043247,50]
[400228191,1767206123271,405.631881,0.00043247,50]
[400228192,1767206123736,405.631881,0.00043247,50]
[400228193,1767206123865,405.631881,0.00043247,50]
[400228194,1767206124181,405.631881,0.00043247,50]
[400228195,1767206124502,405.631881,0.00043247,50]
[400228196,1767206124843,405.631881,0.00043247,50]
[400228197,1767206125145,405.631881,0.00043247,50]
[400228198,1767206125462,405.631881,0.00043247,50]
[400228199,1767206125792,405.631881,0.00043247,50]
[400228200,1767206126078,405.631881,0.00043247,50]
[400228201,1767206126455,405.631881,0.00043247,50]
[400228203,1767206126780,405.631881,0.00043247,50]
[400228204,1767206127076,405.631881,0.00043247,50]
[400228205,1767206127379,405.631881,0.00043247,50]
[400228206,1767206127917,405.631881,0.00043247,50]
[400228207,1767206127992,405.631881,0.00043247,50]
[400228208,1767206128276,405.631881,0.00043247,50]
[400228209,1767206128600,405.631881,0.00043247,50]
[400228210,1767206128963,405.631881,0.00043247,50]
[400228211,1767206129259,405.63188,0.00043247,50]
[400228212,1767206133635,218.199867,0.00043247,50]
[400228213,1767206135701,187.204038,0.00043247,50]
[400228214,1767206135985,187.204038,0.00043247,50]
[400228215,1767206136287,187.204038,0.00043247,50]
[400228216,1767206136561,187.204038,0.00043247,50]
[400228217,1767206136852,187.204038,0.00043247,50]
[400228218,1767206137075,566.629741,0.00043247,50]
[400228219,1767206137172,187.204038,0.00043247,50]
[400228220,1767206137364,566.629741,0.00043247,50]
[400228221,1767206137452,187.204038,0.00043247,50]
[400228222,1767206137648,566.629741,0.00043247,50]
[400228223,1767206137724,187.204038,0.00043247,50]
[400228224,1767206137951,566.629741,0.00043247,50]
[400228225,1767206138010,187.204038,0.00043247,50]
[400228226,1767206138245,566.629741,0.00043247,50]
[400228227,1767206138532,566.629741,0.00043247,50]
[400228228,1767206138648,187.204038,0.00043247,50]
[400228229,1767206138814,566.629741,0.00043247,50]
[400228230,1767206139044,187.204038,0.00043247,50]
[400228231,1767206139126,566.629741,0.00043247,50]
[400228232,1767206139337,187.204038,0.00043247,50]
[400228233,1767206139410,566.629741,0.00043247,50]
[400228234,1767206139642,187.204038,0.00043247,50]
[400228235,1767206139722,566.629741,0.00043247,50]
[400228236,1767206139929,187.204038,0.00043247,50]
[400228237,1767206139997,566.629741,0.00043247,50]
[400228238,1767206140068,151.0,0.00043247,30]
[400228239,1767206140203,187.204038,0.00043247,50]
[400228240,1767206140301,566.629741,0.00043247,50]
[400228241,1767206140447,250.38681,0.00043247,30]
[400228242,1767206140493,187.204038,0.00043247,50]
[400228243,1767206140588,566.629741,0.00043247,50]
[400228244,1767206140795,187.204038,0.00043247,50]
[400228245,1767206140881,566.629741,0.00043247,50]
[400228246,1767206141186,566.629741,0.00043247,50]
[400228247,1767206141231,187.204038,0.00043247,50]
[400228248,1767206141516,566.629741,0.00043247,50]
[400228249,1767206141692,187.204038,0.00043247,50]
[400228250,1767206141810,566.629741,0.00043247,50]
[400228251,1767206141983,187.204029,0.00043247,50]
[400228252,1767206142117,566.629741,0.00043247,50]
[400228253,1767206142419,566.629741,0.00043247,50]
[400228254,1767206142730,566.62975,0.00043247,50]
[400228255,1767206152744,151.0,0.00043247,50]
[400228256,1767206153020,151.0,0.00043247,50]
[400228257,1767206153341,151.0,0.00043247,50]
[400228258,1767206153640,151.0,0.00043247,50]
[400228259,1767206154247,151.0,0.00043247,50]
[400228260,1767206154548,151.0,0.00043247,50]
[400228261,1767206155037,195.387728,0.00043247,50]
[400228262,1767206164991,500.0,0.00043247,120]
[400228263,1767206189708,151.0,0.00043247,50]
[400228264,1767206189821,151.0,0.00043247,50]
[400228265,1767206190002,243.739377,0.00043247,50]
[400228266,1767206190146,151.0,0.00043247,50]
[400228267,1767206190443,151.0,0.00043247,50]
[400228268,1767206190747,151.0,0.00043247,50]
[400228269,1767206191028,151.0,0.00043247,50]
[400228270,1767206191335,151.0,0.00043247,50]
[400228271,1767206191632,151.0,0.00043247,50]
[400228272,1767206191915,151.0,0.00043247,50]
[400228273,1767206192207,151.0,0.00043247,50]
[400228274,1767206192494,169.576171,0.00043247,50]
[400228275,1767206194456,151.0,0.00043247,50]
[400228276,1767206194736,151.0,0.00043247,50]
[400228277,1767206195013,151.0,0.00043247,50]
[400228278,1767206195297,151.0,0.00043247,50]
[400228279,1767206195581,151.0,0.00043247,50]
[400228280,1767206195952,151.0,0.00043247,50]
[400228281,1767206196242,151.0,0.00043247,50]
[400228282,1767206196526,250.060699,0.00043247,50]
[400228283,1767206207425,179.38878,0.00043247,50]
[400228284,1767206232506,151.0,0.00043247,50]
[400228285,1767206232796,151.0,0.00043247,50]
[400228286,1767206233095,151.0,0.00043247,50]
[400228287,1767206233582,151.0,0.00043247,50]
[400228288,1767206233682,151.0,0.00043247,50]
[400228289,1767206233962,151.0,0.00043247,50]
[400228290,1767206234270,151.0,0.00043247,50]
[400228291,1767206234563,151.0,0.00043247,50]
[400228292,1767206234880,151.0,0.00043247,50]
[400228293,1767206235171,151.0,0.00043247,50]
[400228294,1767206235461,151.0,0.00043247,50]
[400228295,1767206235759,151.0,0.00043247,50]
[400228296,1767206236053,151.0,0.00043247,50]
[400228297,1767206236359,179.105124,0.00043247,50]
[400228298,1767206240823,168.137857,0.00043247,50]
[400228299,1767206246893,212.76046,0.00043247,50]
[400228300,1767206247069,365.763585,0.00043247,50]
[400228301,1767206247357,365.763585,0.00043247,50]
[400228302,1767206247638,365.763585,0.00043247,50]
[400228303,1767206247936,365.763585,0.00043247,50]
[400228304,1767206248231,365.763585,0.00043247,50]
[400228305,1767206248549,365.763585,0.00043247,50]
[400228306,1767206248827,365.763585,0.00043247,50]
[400228307,1767206249105,365.763585,0.00043247,50]
[400228308,1767206249388,365.763585,0.00043247,50]
[400228309,1767206249700,365.763585,0.00043247,50]
[400228310,1767206249996,365.763585,0.00043247,50]
[400228311,1767206250311,365.763585,0.00043247,50]
[400228312,1767206250598,365.763585,0.00043247,50]
[400228314,1767206250901,365.763585,0.00043247,50]
[400228315,1767206251230,365.763585,0.00043247,50]
[400228316,1767206251519,365.763585,0.00043247,50]
[400228317,1767206251828,365.763585,0.00043247,50]
[400228318,1767206252182,365.763585,0.00043247,50]
[400228319,1767206252472,365.763585,0.00043247,50]
[400228320,1767206253042,365.763592,0.00043247,50]
[400228324,1767206292566,151.0,0.00043224,50]
[400228325,1767206293178,151.0,0.00043224,50]
[400228326,1767206293263,151.0,0.00043224,50]
[400228327,1767206293579,151.0,0.00043224,50]
[400228328,1767206293869,151.0,0.00043224,50]
[400228329,1767206294151,151.0,0.00043224,50]
[400228330,1767206294460,151.0,0.00043224,50]
[400228331,1767206294951,151.0,0.00043224,50]
[400228332,1767206295252,151.0,0.00043224,50]
[400228333,1767206295618,289.309901,0.00043224,50]
[400228334,1767206295658,151.0,0.00043224,50]
[400228335,1767206295955,151.0,0.00043224,50]
[400228336,1767206296259,151.0,0.00043224,50]
[400228337,1767206296562,151.0,0.00043224,50]
[400228338,1767206296902,151.0,0.00043224,50]
[400228339,1767206297347,151.0,0.00043224,50]
[400228340,1767206297643,151.0,0.00043224,50]
[400228341,1767206297932,186.714764,0.00043224,50]
[400228342,1767206344688,160.0,0.00043224,30]
[400228343,1767206344756,160.0,0.00043224,30]
[400228344,1767206344823,160.0,0.00043224,30]
[400228345,1767206344891,160.0,0.00043224,30]
[400228346,1767206344975,160.0,0.00043224,30]
[400228347,1767206345028,160.0,0.00043224,30]
[400228348,1767206345098,160.0,0.00043224,30]
[400228349,1767206345163,160.0,0.00043224,30]
[400228350,1767206345236,160.0,0.00043224,30]
[400228351,1767206345299,160.0,0.00043224,30]
[400228352,1767206345372,160.0,0.00043224,30]
[400228353,1767206345456,206.3,0.00043224,30]
[400228354,1767206345521,160.0,0.00043224,30]
[400228355,1767206345594,160.0,0.00043224,30]
[400228356,1767206345666,160.0,0.00043224,30]
[400228357,1767206345738,160.0,0.00043224,30]
[400228358,1767206345819,160.0,0.00043224,30]
[400228359,1767206345886,160.0,0.00043224,30]
[400228360,1767206345953,160.0,0.00043224,30]
[400228361,1767206346037,160.0,0.00043224,30]
[400228362,1767206346099,160.0,0.00043224,30]
[400228363,1767206346178,160.0,0.00043224,30]
[400228364,1767206346261,160.0,0.00043224,30]
[400228365,1767206346339,206.3,0.00043224,30]
[400228366,1767206405976,-166.05,0.00011071,2]
[400228367,1767206406002,-100.63199917,0.00011071,2]
[400228368,1767206412488,151.0,0.00043224,50]
[400228369,1767206412781,151.0,0.00043224,50]
[400228370,1767206413087,151.0,0.00043224,50]
[400228371,1767206413443,151.0,0.00043224,50]
[400228372,1767206413724,151.0,0.00043224,50]
[400228373,1767206414012,151.0,0.00043224,50]
[400228374,1767206414383,151.0,0.00043224,50]
[400228375,1767206415070,151.0,0.00043224,50]
[400228376,1767206415141,151.0,0.00043224,50]
[400228377,1767206415256,151.0,0.00043224,50]
[400228378,1767206415537,151.0,0.00043224,50]
[400228379,1767206415834,257.245446,0.00043224,50]
[400228380,1767206417962,362.112547,0.00043224,50]
[400228381,1767206418245,362.112547,0.00043224,50]
[400228382,1767206418538,362.112547,0.00043224,50]
[400228383,1767206418849,362.112547,0.00043224,50]
[400228384,1767206419138,362.112547,0.00043224,50]
[400228385,1767206419441,362.112547,0.00043224,50]
[400228386,1767206419721,362.112547,0.00043224,50]
[400228387,1767206420015,362.112547,0.00043224,50]
[400228388,1767206420435,362.112547,0.00043224,50]
[400228389,1767206420710,362.112547,0.00043224,50]
[400228390,1767206420998,362.112547,0.00043224,50]
[400228391,1767206421220,151.0,0.00043224,50]
[400228392,1767206421310,362.112547,0.00043224,50]
[400228393,1767206421522,151.0,0.00043224,50]
[400228394,1767206421612,362.112547,0.00043224,50]
[400228395,1767206422102,151.0,0.00043224,50]
[400228396,1767206422185,362.112547,0.00043224,50]
[400228397,1767206422399,151.0,0.00043224,50]
[400228398,1767206422476,362.112547,0.00043224,50]
[400228399,1767206422701,151.0,0.00043224,50]
[400228400,1767206422779,362.112547,0.00043224,50]
[400228401,1767206423019,151.0,0.00043224,50]
[400228402,1767206423064,362.112547,0.00043224,50]
[400228403,1767206423336,151.0,0.00043224,50]
[400228404,1767206423379,362.112547,0.00043224,50]
[400228405,1767206423679,362.112547,0.00043224,50]
[400228406,1767206423723,289.309646,0.00043224,50]
[400228407,1767206423993,362.112543,0.00043224,50]
[400228408,1767206424592,1090.380696,0.00043224,50]
[400228409,1767206424871,1090.380696,0.00043224,50]
[400228410,1767206425327,1090.380696,0.00043224,50]
[400228411,1767206425450,151.0,0.00043224,50]
[400228412,1767206425494,1090.380696,0.00043224,50]
[400228413,1767206425734,1090.380696,0.00043224,50]
[400228414,1767206425776,151.0,0.00043224,50]
[400228415,1767206426024,1090.380696,0.00043224,50]
[400228416,1767206426066,151.0,0.00043224,50]
[400228417,1767206426318,1090.380696,0.00043224,50]
[400228418,1767206426367,151.0,0.00043224,50]
[400228419,1767206426662,151.0,0.00043224,50]
[400228420,1767206426714,1090.380696,0.00043224,50]
[400228421,1767206427235,151.0,0.00043224,50]
[400228422,1767206427281,1090.380696,0.00043224,50]
[400228423,1767206427327,151.0,0.00043224,50]
[400228424,1767206427382,1090.380696,0.00043224,50]
[400228425,1767206427591,151.0,0.00043224,50]
[400228426,1767206427637,1090.380696,0.00043224,50]
[400228427,1767206427915,1090.380696,0.00043224,50]
[400228428,1767206427958,151.0,0.00043224,50]
[400228429,1767206428196,1090.380696,0.00043224,50]
[400228430,1767206428239,151.0,0.00043224,50]
[400228431,1767206428478,1090.380696,0.00043224,50]
[400228432,1767206428522,151.0,0.00043224,50]
[400228433,1767206428766,1090.380696,0.00043224,50]
[400228434,1767206428807,175.34118,0.00043224,50]
[400228435,1767206429077,1090.380696,0.00043224,50]
[400228436,1767206429376,1090.380696,0.00043224,50]
[400228437,1767206429686,1090.380696,0.00043224,50]
[400228438,1767206429983,1090.380696,0.00043224,50]
[400228439,1767206430299,1090.380704,0.00043224,50]
[400228440,1767206434604,155.448959,0.00043224,50]
[400228441,1767206434668,151.0,0.00043224,50]
[400228442,1767206434995,151.0,0.00043224,50]
[400228443,1767206435291,199.627717,0.00043224,50]
[400228444,1767206440559,151.0,0.00043224,50]
[400228445,1767206440836,151.0,0.00043224,50]
[400228446,1767206441117,151.0,0.00043224,50]
[400228447,1767206441400,151.0,0.00043224,50]
[400228448,1767206441687,151.0,0.00043224,50]
[400228449,1767206441963,151.0,0.00043224,50]
[400228450,1767206442262,151.0,0.00043224,50]
[400228451,1767206442646,151.0,0.00043224,50]
[400228452,1767206442935,151.0,0.00043224,50]
[400228453,1767206443211,151.0,0.00043224,50]
[400228454,1767206443486,151.0,0.00043224,50]
[400228455,1767206443775,151.0,0.00043224,50]
[400228456,1767206444095,291.584406,0.00043224,50]
[400228457,1767206452423,151.0,0.00043224,50]
[400228458,1767206452845,151.0,0.00043224,50]
[400228459,1767206453135,151.0,0.00043224,50]
[400228460,1767206453418,291.245981,0.00043224,50]
[400228461,1767206461257,500.0,0.00043224,120]
[400228463,1767206761728,500.0,0.00043225,120]
[400228514,1767207005501,-190.57652755,0.00011071,2]
[400228530,1767207031527,-50.42347245,0.00011071,2]
[400228531,1767207031539,-3718.645,0.00011172,2]
[400228532,1767207031549,-152.674,0.00011172,2]
[400228533,1767207031559,-527.07135857,0.00011195,2]
[400228534,1767207031572,-672.92864143,0.00011195,2]
[400228535,1767207031587,-1815.86623756,0.00011196,2]
[400228536,1767207031599,-2519.10982703,0.00011196,2]
[400228537,1767207031611,-487.0242411,0.00011196,2]
[400228538,1767207031624,-665.86849656,0.00011196,2]
[400228539,1767207031636,-999.0,0.00011196,2]
[400228540,1767207031649,-1465.06735603,0.00011196,2]
[400228541,1767207031658,-3445.00082455,0.000112,2]
[400228542,1767207031669,-305.85181942,0.000112,2]
[400228543,1767207031681,-371.60336112,0.000112,2]
[400228544,1767207031692,-1872.07752206,0.000112,2]
[400228545,1767207031704,-6916.88431535,0.000112,2]
[400228546,1767207031716,-646.95932909,0.000112,2]
[400228547,1767207031727,-121145.30050307,0.000112,2]
[400228548,1767207031739,-33597.65605858,0.000112,2]
[400228550,1767207031750,-96292.39168932,0.000112,2]
[400228552,1767207031762,-176115.44040173,0.000112,2]
[400228554,1767207031774,-29842.75751829,0.000112,2]
[400228556,1767207031785,-300.0,0.000112,2]
[400228559,1767207031797,-449.6702639,0.000112,2]
[400228561,1767207031813,-2602.86816267,0.000112,2]
[400228562,1767207031824,-1377.93241419,0.000112,2]
[400228563,1767207031836,-1060.92531021,0.000112,2]
[400228883,1767207037549,-401.616215,0.000112,2]
[400228884,1767207037563,-1409.95247366,0.000112,2]
[400228885,1767207037575,-495.31266721,0.000112,2]
[400228886,1767207037602,-558.38385669,0.000112,2]
[400228887,1767207037656,-2832.97410364,0.000112,2]
[400228888,1767207037668,-432.46183533,0.000112,2]
[400229075,1767207039603,-131916.76732998,0.000112,2]
[400229102,1767207039764,-584.9021579,0.000112,2]
[400229105,1767207039781,-439.8893617,0.000112,2]
[400229107,1767207039793,-384584.42050534,0.000112,2]
[400229109,1767207039803,-150.0,0.00011299,2]
[400229111,1767207039813,-12427.90066643,0.000113,2]
[400229113,1767207039822,-2858.6002,0.000113,2]
[400229115,1767207039832,-487.274,0.000113,2]
[400229117,1767207039842,-21452.3611,0.000113,2]
[400229119,1767207039852,-21896.86626096,0.000113,2]
[400229122,1767207039862,-2500.0,0.000113,2]
[400229124,1767207039872,-236.2092,0.000113,2]
[400229126,1767207039886,-151.0,0.00011393,2]
[400229128,1767207039896,-151.0,0.00011393,2]
[400229130,1767207039906,-151.0,0.00011393,2]
[400229132,1767207039916,-236.7016539,0.00011393,2]
[400229134,1767207039928,-553.98270933,0.00011399,2]
[400229136,1767207039937,-301.41,0.000114,2]
[400229138,1767207039947,-9999.99,0.000114,2]
[400229140,1767207039958,-299.99,0.000114,2]
[400229142,1767207039968,-150.99,0.000114,2]
[400229144,1767207039978,-7513.39,0.000114,2]
[400229146,1767207039987,-9999.99,0.000114,2]
[400229148,1767207039997,-7951.93615828,0.0001183,2]
[400229150,1767207040007,-21896.86626096,0.00011922,2]
[400229152,1767207040018,-500.0,0.00012067,2]
[400229154,1767207040029,-3240.0,0.00012076,2]
[400229156,1767207040039,-431.18,0.00012076,2]
[400229158,1767207040049,-166.05,0.00012178,2]
[400229160,1767207040059,-250.0,0.00012178,2]
[400229162,1767207040069,-250.0,0.00012178,2]
[400229165,1767207040080,-250.0,0.00012178,2]
[400229167,1767207040090,-1393.7,0.00012186,2]
[400229169,1767207040100,-150.0,0.00012255,2]
[400229171,1767207040110,-34728.81,0.0001231,2]
[400229173,1767207040120,-1680.0,0.00012315,2]
[400229175,1767207040129,-553.98270928,0.00012316,2]
[400229177,1767207040139,-255.0,0.00012361,2]
[400229179,1767207040153,-1500.0,0.00012373,2]
[400229181,1767207040163,-200.0,0.00012392,2]
[400229183,1767207040172,-207.4,0.00012392,2]
[400229185,1767207040182,-215.0738,0.00012392,2]
[400229188,1767207040193,-223.0315306,0.00012392,2]
[400229190,1767207040203,-231.28369723,0.00012392,2]
[400229191,1767207040212,-239.84119403,0.00012392,2]
[400229193,1767207040222,-248.71531821,0.00012392,2]
[400229195,1767207040231,-257.91778498,0.00012392,2]
[400229197,1767207040243,-267.46074303,0.00012392,2]
[400229199,1767207040253,-205.03049064,0.00012392,2]
[400229201,1767207040263,-7951.93615828,0.00012464,2]
[400229203,1767207040273,-215.64160197,0.00012534,2]
[400229205,1767207040283,-21896.86626096,0.00012544,2]
[400229208,1767207040295,-500.73461727,0.00012615,2]
[400229210,1767207040305,-166.66,0.00012759,2]
[400229212,1767207040316,-7951.93615828,0.00013097,2]
[400229214,1767207040326,-21896.86626096,0.00013167,2]
[400229216,1767207040335,-166.66,0.0001318,2]
[400229218,1767207040347,-553.98270928,0.00013233,2]
[400229220,1767207040357,-150.0,0.00013251,2]
[400229222,1767207040367,-955.89,0.00013264,2]
[400229224,1767207040377,-166.05,0.00013285,2]
[400229226,1767207040388,-12676.92,0.00013441,2]
[400229228,1767207040397,-166.66,0.00013446,2]
[400229230,1767207040407,-433.0,0.00013525,2]
[400229232,1767207040417,-2351.0,0.00013546,2]
[400229234,1767207040427,-166.66,0.00013601,2]
[400229236,1767207040436,-500.0,0.00013698,2]
[400229238,1767207040446,-500.0,0.00013698,2]
[400229240,1767207040457,-500.0,0.00013698,2]
[400229242,1767207040468,-500.0,0.00013698,2]
[400229244,1767207040477,-500.0,0.00013698,2]
[400229246,1767207040487,-500.0,0.00013698,2]
[400229272,1767207040734,-200.0,0.00013699,2]
[400229274,1767207040744,-181.68,0.000137,2]
[400229277,1767207040754,-166.66,0.00013729,2]